fUST/lending_fUST_20251011
["ID","MTS","AMOUNT","RATE_DAILY","PERIOD"]
[390765307,1760140240560,-151.0,0.00029666,30]
[390765309,1760140240571,-298.03512572,0.00029668,10]
[390765311,1760140240581,-151.0,0.00029669,2]
[390765313,1760140240590,-151.0,0.00029669,2]
[390765315,1760140240600,-198.0,0.00029669,2]
[390765317,1760140240609,-198.0,0.00029669,2]
[390765319,1760140240618,-151.0,0.00029669,2]
[390765321,1760140240627,-151.0,0.00029669,2]
[390765323,1760140240637,-500.0,0.00029669,2]
[390765325,1760140240647,-198.0,0.00029669,2]
[390765326,1760140240656,-200.0,0.00029672,10]
[390765328,1760140240666,-156.60502013,0.00029673,5]
[390765330,1760140240676,-500.0,0.00029673,5]
[390765332,1760140240685,-500.0,0.00029673,5]
[390765334,1760140240695,-500.0,0.00029673,5]
[390765336,1760140240704,-496.47532479,0.00029673,5]
[390765338,1760140240714,-500.0,0.00029673,5]
[390765340,1760140240724,-500.0,0.00029673,5]
[390765341,1760140240733,-151.0,0.00029673,30]
[390765343,1760140240742,-151.0,0.00029673,30]
[390765345,1760140240751,-151.0,0.00029673,30]
[390765347,1760140240760,-151.0,0.00029673,30]
[390765349,1760140240770,-151.0,0.00029673,30]
[390765351,1760140240779,-151.0,0.00029673,30]
[390765353,1760140240788,-151.0,0.00029673,30]
[390765355,1760140240798,-151.0,0.00029673,30]
[390765357,1760140240807,-151.0,0.00029673,30]
[390765358,1760140240816,-189.342036,0.00029673,30]
[390765360,1760140240827,-151.0,0.00029673,30]
[390765362,1760140240838,-151.0,0.00029673,30]
[390765364,1760140240847,-151.0,0.00029673,30]
[390765366,1760140240856,-151.0,0.00029673,30]
[390765368,1760140240865,-151.0,0.00029673,30]
[390765370,1760140240874,-139.86328863,0.00029673,30]
[390765398,1760140241182,-11.13671137,0.00029673,30]
[390765413,1760140241329,-151.0,0.00029673,30]
[390765415,1760140241339,-151.0,0.00029673,30]
[390765417,1760140241348,-151.0,0.00029673,30]
[390765419,1760140241357,-151.0,0.00029673,30]
[390765420,1760140241366,-151.0,0.00029673,30]
[390765422,1760140241376,-151.0,0.00029673,30]
[390765424,1760140241386,-151.0,0.00029673,30]
[390765426,1760140241396,-151.0,0.00029673,30]
[390765428,1760140241405,-151.0,0.00029673,30]
[390765430,1760140241415,-151.0,0.00029673,30]
[390765432,1760140241425,-151.0,0.00029673,30]
[390765434,1760140241435,-271.671125,0.00029673,30]
[390765436,1760140241446,-192.47328,0.00029673,2]
[390765437,1760140241455,-192.47328,0.00029673,2]
[390765439,1760140241464,-192.47328,0.00029673,2]
[390765440,1760140241474,-192.47328,0.00029673,2]
[390765442,1760140241487,-192.47328,0.00029673,2]
[390765444,1760140241497,-192.47328,0.00029673,2]
[390765446,1760140241506,-192.47328,0.00029673,2]
[390765447,1760140241515,-192.47328,0.00029673,2]
[390765448,1760140241525,-192.47328,0.00029673,2]
[390765449,1760140241535,-192.47328,0.00029673,2]
[390765450,1760140241544,-192.47328,0.00029673,2]
[390765451,1760140241553,-192.47328,0.00029673,2]
[390765452,1760140241563,-192.47328,0.00029673,2]
[390765454,1760140241574,-192.47328,0.00029673,2]
[390765456,1760140241584,-192.47328,0.00029673,2]
[390765457,1760140241593,-151.06608,0.00029673,2]
[390765458,1760140241603,-151.0,0.00029673,30]
[390765459,1760140241613,-192.47328,0.00029673,2]
[390765460,1760140241622,-192.47328,0.00029673,2]
[390765461,1760140241631,-192.47328,0.00029673,2]
[390765462,1760140241641,-192.47328,0.00029673,2]
[390765463,1760140241650,-192.47328,0.00029673,2]
[390765464,1760140241660,-151.0,0.00029673,30]
[390765465,1760140241669,-151.0,0.00029673,30]
[390765466,1760140241678,-151.0,0.00029673,30]
[390765467,1760140241687,-151.0,0.00029673,30]
[390765468,1760140241696,-151.0,0.00029673,30]
[390765469,1760140241705,-1000.0,0.00029673,2]
[390765470,1760140241714,-151.0,0.00029673,30]
[390765471,1760140241723,-1000.0,0.00029673,2]
[390765472,1760140241732,-151.0,0.00029673,30]
[390765473,1760140241742,-1000.0,0.00029673,2]
[390765474,1760140241751,-151.0,0.00029673,30]
[390765475,1760140241760,-1000.0,0.00029673,2]
[390765476,1760140241770,-1000.0,0.00029673,2]
[390765477,1760140241779,-151.0,0.00029673,30]
[390765478,1760140241788,-485.993972,0.00029673,2]
[390765479,1760140241798,-151.0,0.00029673,30]
[390765480,1760140241808,-151.0,0.00029673,30]
[390765481,1760140241817,-151.0,0.00029673,30]
[390765482,1760140241827,-151.0,0.00029673,30]
[390765483,1760140241836,-151.0,0.00029673,30]
[390765484,1760140241845,-151.0,0.00029673,30]
[390765485,1760140241854,-151.0,0.00029673,30]
[390765486,1760140241864,-151.0,0.00029673,30]
[390765487,1760140241874,-297.415729,0.00029673,30]
[390765488,1760140241883,-1615.856201,0.00029673,30]
[390765489,1760140241892,-151.0,0.00029673,30]
[390765490,1760140241901,-1615.856201,0.00029673,30]
[390765491,1760140241911,-1615.856201,0.00029673,30]
[390765492,1760140241920,-1615.856201,0.00029673,30]
[390765493,1760140241930,-1615.856201,0.00029673,30]
[390765494,1760140241939,-1615.856201,0.00029673,30]
[390765495,1760140241948,-1615.856201,0.00029673,30]
[390765496,1760140241958,-1615.856201,0.00029673,30]
[390765497,1760140241968,-1615.856201,0.00029673,30]
[390765498,1760140241977,-1615.856201,0.00029673,30]
[390765499,1760140241987,-1615.856201,0.00029673,30]
[390765500,1760140241997,-1615.856201,0.00029673,30]
[390765501,1760140242007,-1615.856201,0.00029673,30]
[390765502,1760140242016,-1615.856201,0.00029673,30]
[390765503,1760140242026,-1615.856201,0.00029673,30]
[390765504,1760140242036,-1615.856201,0.00029673,30]
[390765505,1760140242046,-1615.856201,0.00029673,30]
[390765506,1760140242056,-1615.856201,0.00029673,30]
[390765507,1760140242066,-1615.856201,0.00029673,30]
[390765508,1760140242077,-1615.856203,0.00029673,30]
[390765509,1760140242087,-151.0,0.00029673,30]
[390765510,1760140242096,-151.0,0.00029673,30]
[390765511,1760140242105,-151.0,0.00029673,30]
[390765512,1760140242114,-151.0,0.00029673,30]
[390765513,1760140242124,-151.0,0.00029673,30]
[390765514,1760140242133,-151.0,0.00029673,30]
[390765515,1760140242143,-151.0,0.00029673,30]
[390765516,1760140242152,-151.0,0.00029673,30]
[390765517,1760140242161,-151.0,0.00029673,30]
[390765518,1760140242169,-151.0,0.00029673,30]
[390765519,1760140242178,-151.0,0.00029673,30]
[390765520,1760140242187,-151.0,0.00029673,30]
[390765521,1760140242196,-151.0,0.00029673,30]
[390765522,1760140242205,-151.0,0.00029673,30]
[390765523,1760140242214,-232.131095,0.00029673,30]
[390765524,1760140242223,-151.0,0.00029673,30]
[390765525,1760140242232,-151.0,0.00029673,30]
[390765526,1760140242241,-151.0,0.00029673,30]
[390765527,1760140242250,-151.0,0.00029673,30]
[390765528,1760140242259,-247.115934,0.00029673,30]
[390765529,1760140242267,-151.0,0.00029673,30]
[390765530,1760140242277,-151.0,0.00029674,30]
[390765531,1760140242286,-151.0,0.00029674,30]
[390765532,1760140242295,-151.0,0.00029674,30]
[390765533,1760140242305,-152.401728,0.00029674,30]
[390765534,1760140242314,-334.260558,0.00029674,30]
[390765535,1760140242323,-334.260558,0.00029674,30]
[390765536,1760140242332,-334.260558,0.00029674,30]
[390765537,1760140242340,-334.260558,0.00029674,30]
[390765538,1760140242349,-334.260558,0.00029674,30]
[390765539,1760140242359,-334.260558,0.00029674,30]
[390765540,1760140242368,-334.260558,0.00029674,30]
[390765541,1760140242378,-334.260558,0.00029674,30]
[390765542,1760140242387,-334.260558,0.00029674,30]
[390765543,1760140242396,-334.260558,0.00029674,30]
[390765544,1760140242405,-334.260558,0.00029674,30]
[390765545,1760140242416,-334.260558,0.00029674,30]
[390765546,1760140242425,-334.395808,0.00029674,30]
[390765547,1760140242435,-334.260558,0.00029674,30]
[390765548,1760140242448,-334.395808,0.00029674,30]
[390765549,1760140242458,-334.260558,0.00029674,30]
[390765550,1760140242467,-334.395808,0.00029674,30]
[390765551,1760140242476,-334.260558,0.00029674,30]
[390765552,1760140242486,-334.395808,0.00029674,30]
[390765553,1760140242495,-334.260558,0.00029674,30]
[390765554,1760140242509,-334.395808,0.00029674,30]
[390765555,1760140242518,-334.260558,0.00029674,30]
[390765556,1760140242530,-334.395808,0.00029674,30]
[390765557,1760140242539,-334.260558,0.00029674,30]
[390765558,1760140242549,-334.395808,0.00029674,30]
[390765559,1760140242559,-334.260558,0.00029674,30]
[390765560,1760140242574,-334.395808,0.00029674,30]
[390765561,1760140242591,-334.260555,0.00029674,30]
[390765562,1760140242602,-334.395808,0.00029674,30]
[390765563,1760140242612,-334.395808,0.00029674,30]
[390765564,1760140242623,-334.395808,0.00029674,30]
[390765565,1760140242632,-334.395808,0.00029674,30]
[390765566,1760140242642,-334.395808,0.00029674,30]
[390765567,1760140242651,-334.395808,0.00029674,30]
[390765568,1760140242662,-334.395808,0.00029674,30]
[390765569,1760140242671,-334.395808,0.00029674,30]
[390765570,1760140242681,-334.395808,0.00029674,30]
[390765573,1760140242691,-334.395808,0.00029674,30]
[390765574,1760140242701,-334.395808,0.00029674,30]
[390765576,1760140242711,-334.395799,0.00029674,30]
[390765578,1760140242720,-151.0,0.00029674,30]
[390765582,1760140242730,-151.0,0.00029674,30]
[390765584,1760140242739,-151.0,0.00029674,30]
[390765587,1760140242749,-151.0,0.00029674,30]
[390765588,1760140242758,-151.0,0.00029674,30]
[390765591,1760140242767,-164.915267,0.00029674,30]
[390765594,1760140242776,-420.884574,0.00029674,30]
[390765597,1760140242787,-420.884574,0.00029674,30]
[390765599,1760140242797,-420.884574,0.00029674,30]
[390765602,1760140242806,-420.884574,0.00029674,30]
[390765605,1760140242816,-420.884574,0.00029674,30]
[390765607,1760140242826,-420.884574,0.00029674,30]
[390765609,1760140242836,-420.884574,0.00029674,30]
[390765611,1760140242845,-420.884574,0.00029674,30]
[390765613,1760140242854,-420.884574,0.00029674,30]
[390765615,1760140242863,-420.884574,0.00029674,30]
[390765616,1760140242872,-420.884574,0.00029674,30]
[390765618,1760140242882,-420.884574,0.00029674,30]
[390765620,1760140242892,-420.884574,0.00029674,30]
[390765622,1760140242901,-420.884574,0.00029674,30]
[390765624,1760140242910,-420.884574,0.00029674,30]
[390765626,1760140242920,-420.884574,0.00029674,30]
[390765627,1760140242932,-420.884574,0.00029674,30]
[390765628,1760140242941,-420.884574,0.00029674,30]
[390765629,1760140242951,-420.884574,0.00029674,30]
[390765630,1760140242961,-420.884584,0.00029674,30]
[390765631,1760140242970,-186.264276,0.00029674,30]
[390765632,1760140242981,-186.264276,0.00029674,30]
[390765633,1760140242990,-151.0,0.00029674,30]
[390765634,1760140243000,-186.264276,0.00029674,30]
[390765636,1760140243009,-186.264276,0.00029674,30]
[390765637,1760140243019,-151.0,0.00029674,30]
[390765638,1760140243029,-186.264276,0.00029674,30]
[390765639,1760140243038,-151.0,0.00029674,30]
[390765641,1760140243047,-186.264276,0.00029674,30]
[390765643,1760140243057,-227.341931,0.00029674,30]
[390765644,1760140243066,-186.264276,0.00029674,30]
[390765645,1760140243078,-186.264276,0.00029674,30]
[390765646,1760140243087,-186.264276,0.00029674,30]
[390765647,1760140243097,-847.834918,0.00029674,30]
[390765648,1760140243107,-186.264276,0.00029674,30]
[390765649,1760140243116,-847.834918,0.00029674,30]
[390765650,1760140243126,-847.834918,0.00029674,30]
[390765651,1760140243136,-186.264276,0.00029674,30]
[390765652,1760140243147,-847.834918,0.00029674,30]
[390765653,1760140243157,-186.264276,0.00029674,30]
[390765654,1760140243166,-847.834918,0.00029674,30]
[390765655,1760140243176,-186.264276,0.00029674,30]
[390765656,1760140243313,-847.834918,0.00029674,30]
[390765657,1760140243324,-186.264276,0.00029674,30]
[390765658,1760140243335,-847.834918,0.00029674,30]
[390765659,1760140243345,-186.264276,0.00029674,30]
[390765660,1760140243354,-847.834918,0.00029674,30]
[390765661,1760140243363,-186.264276,0.00029674,30]
[390765662,1760140243373,-847.834918,0.00029674,30]
[390765663,1760140243383,-186.264276,0.00029674,30]
[390765664,1760140243392,-186.264276,0.00029674,30]
[390765665,1760140243402,-847.834918,0.00029674,30]
[390765666,1760140243411,-278358.12571327,0.00029674,20]
[390765667,1760140243421,-8261.3178,0.00029674,15]
[390765668,1760140243430,-3321866.77054982,0.00029674,20]
[390765669,1760140243445,-11465.0,0.00029674,20]
[390765670,1760140243457,-61402.0248965,0.00029674,20]
[390765675,1760140243721,152.0,0.000274,120]
[390765677,1760140244009,-186.264276,0.00029674,30]
[390765678,1760140244019,-847.834918,0.00029674,30]
[390765679,1760140244029,-186.264276,0.00029674,30]
[390765680,1760140244039,-847.834918,0.00029674,30]
[390765681,1760140244049,-847.834918,0.00029674,30]
[390765682,1760140244059,-847.834918,0.00029674,30]
[390765683,1760140244068,-847.834918,0.00029674,30]
[390765684,1760140244080,-18224.29685801,0.00029674,20]
[390765685,1760140244091,-20601.69365,0.00029674,20]
[390765686,1760140244103,-7325.766756,0.00029674,20]
[390765687,1760140244115,-392.02431225,0.00029674,20]
[390765692,1760140244914,-152.0,0.000291,120]
[390765693,1760140244926,-847.834918,0.00029674,30]
[390765694,1760140244937,-847.834918,0.00029674,30]
[390765695,1760140244949,-847.834918,0.00029674,30]
[390765696,1760140244960,-847.834918,0.00029674,30]
[390765697,1760140244971,-847.83492705,0.00029674,30]
[390765698,1760140244982,-151.0,0.00029674,30]
[390765699,1760140244994,-151.0,0.00029674,30]
[390765700,1760140245004,-151.0,0.00029674,30]
[390765702,1760140245014,-287.524392,0.00029674,30]
[390765704,1760140245024,-54646.50899345,0.00029674,20]
[390765717,1760140246432,-168.88603583,0.0002774,2]
[390765719,1760140246444,-331.11396417,0.0002774,2]
[390765722,1760140246463,-979.63883795,0.00029674,20]
[390765806,1760140842711,206.80916027,0.00028,120]
[390765813,1760141072131,200.0,0.00028215,120]
[390765906,1760141251742,200.0,0.00028627,120]
[390765914,1760141347146,-5000.0,0.00017466,10]
[390765915,1760141347169,-150.0,0.00017466,2]
[390765916,1760141347193,-300.0,0.00017998,2]
[390765917,1760141347215,-300.0,0.00017999,2]
[390765918,1760141347235,-150.0,0.00017999,2]
[390765919,1760141347257,-1200.0,0.00017999,2]
[390765920,1760141347278,-10383.05,0.00018,2]
[390765921,1760141347300,-200.0,0.00018045,2]
[390765922,1760141347324,-172.5,0.00018066,2]
[390765923,1760141347344,-186.0,0.00018466,3]
[390765924,1760141347367,-195.0,0.00018666,2]
[390765925,1760141347387,-4924.73051494,0.00019245,2]
[390765926,1760141347409,-217.5,0.00019266,2]
[390765927,1760141347429,-262.74348818,0.00019458,2]
[390765928,1760141347451,-150.0,0.00019509,2]
[390765929,1760141347474,-420.0,0.00019638,2]
[390765930,1760141347497,-1680.0,0.00019735,2]
[390765931,1760141347519,-240.0,0.00019866,2]
[390765932,1760141347542,-262.5,0.00020466,2]
[390765933,1760141347566,-285.0,0.00021066,2]
[390765934,1760141347589,-198.99999999,0.000212,2]
[390765935,1760141347609,-160.0,0.00021236,2]
[390765936,1760141347632,-150.0,0.00021282,2]
[390765937,1760141347653,-6979.22753363,0.00021335,2]
[390765938,1760141347675,-587.0,0.00021427,2]
[390765939,1760141347695,-179.64071856,0.00021519,2]
[390765940,1760141347717,-2134.0,0.00021639,2]
[390765941,1760141347737,-500.0,0.00021857,2]
[390765942,1760141347756,-500.0,0.00022276,2]
[390765943,1760141347778,-1000.0,0.00022281,2]
[390765944,1760141347798,-500.0,0.0002235,2]
[390765945,1760141347821,-500.0,0.00022708,2]
[390765946,1760141347841,-162.0,0.00022849,8]
[390765947,1760141347866,-176.09,0.00023056,2]
[390765948,1760141347892,-161.0,0.00023379,2]
[390765949,1760141347914,-250.0,0.00023582,2]
[390765950,1760141347938,-500.0,0.00023989,2]
[390765951,1760141347962,-2169.740505,0.00024,2]
[390765952,1760141347988,-218.558,0.00024343,6]
[390765953,1760141348011,-500.0,0.00024402,2]
[390765954,1760141348034,-66.75625912,0.0002483,2]
[390766072,1760141432545,-150.0,0.00019757,2]
[390766074,1760141432555,-150.0,0.00021553,2]
[390766077,1760141432566,-155.36,0.00023349,2]
[390766080,1760141432576,-1344.86766049,0.00024582,10]
[390766083,1760141432587,-803.45594316,0.00024582,10]
[390766086,1760141432597,-1768.32155071,0.00024582,10]
[390766089,1760141432607,-329.15085384,0.00024861,2]
[390766092,1760141432616,-1200.0,0.00024869,2]
[390766094,1760141432626,-1391.4528302,0.0002487,2]
[390766097,1760141432639,-1261.77306674,0.0002487,2]
[390766114,1760141432806,-1540.28610153,0.0002487,2]
[390766390,1760141438298,-455.18249544,0.0002487,2]
[390766391,1760141438310,-1603.22358985,0.0002487,2]
[390766392,1760141438322,-861.33152525,0.0002487,2]
[390766393,1760141438332,-207.15,0.00025145,2]
[390766394,1760141438342,-217.660196,0.0002556,2]
[390766395,1760141438351,-299.44356231,0.00025903,2]
[390766396,1760141438361,-4176.90231747,0.00026561,2]
[390766397,1760141438371,-500.0,0.0002667,2]
[390766398,1760141438380,-526.02426037,0.00026715,2]
[390766399,1760141438390,-214.71167096,0.0002688,2]
[390766400,1760141438400,-258.94,0.00026941,2]
[390766401,1760141438410,-689.85395968,0.00026947,2]
[390766402,1760141438419,-250.56623551,0.00026947,2]
[390766403,1760141438429,-2650.86,0.0002697,10]
[390766404,1760141438439,-200.41593512,0.00026973,2]
[390766405,1760141438448,-500.0,0.00026973,2]
[390766406,1760141438458,-342.5053219,0.00026973,2]
[390766407,1760141438467,-500.0,0.00026973,2]
[390766408,1760141438477,-500.46384327,0.00026973,2]
[390766409,1760141438487,-500.0,0.00026973,2]
[390766410,1760141438496,-500.49743162,0.00026973,2]
[390766411,1760141438508,-999.70008997,0.00026979,2]
[390766412,1760141438519,-35343.0432673,0.0002698,2]
[390766413,1760141438534,-23866.20108442,0.0002698,2]
[390766414,1760141438546,-88054.52771315,0.0002698,2]
[390766415,1760141438557,-1574.61714157,0.0002698,2]
[390766416,1760141438569,-1018.95959998,0.0002698,2]
[390766417,1760141438579,-5653.0,0.0002698,2]
[390766418,1760141438591,-509.32012587,0.0002698,2]
[390766422,1760141438603,-1284.52427954,0.0002698,2]
[390766423,1760141438614,-13692.15158117,0.0002698,2]
[390766424,1760141438624,-5327.52745114,0.0002698,2]
[390766425,1760141438633,-7975.22,0.00026989,2]
[390766426,1760141438646,-23434.36513963,0.0002699,2]
[390766427,1760141438657,-6970.96737231,0.0002699,2]
[390766428,1760141438669,-2814.70574874,0.0002699,2]
[390766429,1760141438681,-5448.51305132,0.0002699,2]
[390766430,1760141438692,-7583.32442373,0.0002699,2]
[390766431,1760141438704,-1077.26022773,0.0002699,2]
[390766432,1760141438715,-4342.956325,0.0002699,2]
[390766433,1760141438727,-14806.94913258,0.0002699,2]
[390766434,1760141438796,-33520.95857896,0.0002699,2]
[390766435,1760141438805,-2199.13674178,0.00027047,2]
[390766436,1760141438815,-298.03512572,0.00027167,2]
[390766437,1760141438824,-214.71167093,0.00027267,2]
[390766438,1760141438834,-400.0,0.00027363,2]
[390766439,1760141438842,-500.0,0.00027397,60]
[390766440,1760141438852,-500.0,0.00027397,60]
[390766441,1760141438862,-398.0,0.00027443,2]
[390766442,1760141438871,-500.0,0.00027521,5]
[390766443,1760141438884,-398.0,0.00027578,2]
[390766444,1760141438896,-214.71167093,0.00027654,2]
[390766445,1760141438905,-304.58,0.00027772,3]
[390766446,1760141438914,-152.29,0.00027772,3]
[390766447,1760141438925,-456.92,0.00027772,3]
[390766448,1760141438935,-500.0,0.00027773,5]
[390766449,1760141438944,-375.22976713,0.00027773,5]
[390766450,1760141438954,-500.0,0.00027773,5]
[390766451,1760141438963,-500.0,0.00027773,5]
[390766452,1760141438975,-500.0,0.00027773,5]
[390766453,1760141438984,-500.0,0.00027773,5]
[390766454,1760141438994,-500.0,0.00027773,5]
[390766455,1760141439006,-500.0,0.00027773,5]
[390766456,1760141439015,-500.0,0.00027773,5]
[390766457,1760141439025,-222.47,0.00027773,7]
[390766458,1760141439035,-155.0,0.00027781,26]
[390766459,1760141439044,-85498.1723963,0.00027782,2]
[390766460,1760141439055,-2663.76372557,0.00027782,2]
[390766461,1760141439065,-398.0,0.00027786,7]
[390766462,1760141439074,-160.0,0.00027791,2]
[390766463,1760141439084,-500.0,0.00027791,60]
[390766464,1760141439094,-500.0,0.00027791,60]
[390766465,1760141439104,-54383.07346143,0.00027792,2]
[390766466,1760141439114,-500.0,0.00027861,2]
[390766467,1760141439124,-500.0,0.00027861,2]
[390766468,1760141439134,-85498.1723963,0.0002797,2]
[390766469,1760141439147,-2663.76372557,0.0002797,2]
[390766470,1760141439157,-200.28655252,0.00027973,5]
[390766471,1760141439168,-500.93884573,0.00027973,5]
[390766472,1760141439178,-500.0,0.00027973,5]
[390766473,1760141439188,-500.0,0.00027973,5]
[390766474,1760141439199,-183.6482747,0.00027973,5]
[390766475,1760141439208,-200.29806705,0.00027973,5]
[390766476,1760141439219,-500.0,0.00027973,5]
[390766477,1760141439228,-496.47532479,0.00027973,5]
[390766478,1760141439238,-398.0,0.0002801,2]
[390766479,1760141439248,-214.71167093,0.00028041,2]
[390766480,1760141439258,-222.48677283,0.00028047,7]
[390766481,1760141439267,-7975.22,0.00028085,4]
[390766482,1760141439277,-689.85395967,0.00028269,2]
[390766483,1760141439287,-168.0,0.00028284,2]
[390766484,1760141439296,-501.51707025,0.00028321,5]
[390766486,1760141439306,-914.0,0.00028361,2]
[390766488,1760141439315,-214.71167093,0.00028429,2]
[390766489,1760141439324,-500.0,0.00028467,60]
[390766490,1760141439335,-656.60502013,0.00028521,5]
[390766491,1760141439344,-398.0,0.00028552,7]
[390766492,1760141439354,-300.0,0.000286,2]
[390766493,1760141439363,-300.0,0.000286,2]
[390766494,1760141439373,-914.0,0.00028607,2]
[390766495,1760141439383,-194.0,0.00028681,7]
[390766496,1760141439512,-194.0,0.00028723,2]
[390766497,1760141439562,-310.72,0.00028737,2]
[390766498,1760141439573,-864.5354061,0.00028782,2]
[390766499,1760141439582,-214.71167093,0.00028816,2]
[390766500,1760141439592,-500.0,0.00028862,7]
[390766501,1760141439601,-168.0,0.00028966,2]
[390766502,1760141439610,-500.81548899,0.00028973,5]
[390766503,1760141439620,-500.0,0.00028973,5]
[390766504,1760141439629,-500.0,0.00028973,5]
[390766505,1760141439641,-500.0,0.0002898,60]
[390766506,1760141439652,-500.0,0.0002898,60]
[390766507,1760141439662,-205.62041537,0.0002898,60]
[390766508,1760141439673,-200.0,0.00028989,120]
[390766509,1760141439683,-914.0,0.00029009,7]
[390766510,1760141439692,-150.0,0.00029062,2]
[390766511,1760141439703,-150.154,0.00029062,2]
[390766512,1760141439713,-150.0,0.00029062,2]
[390766513,1760141439722,-151.685,0.00029062,2]
[390766514,1760141439732,-295.0,0.00029062,2]
[390766515,1760141439742,-980.0,0.00029062,2]
[390766516,1760141439752,-630.0,0.00029062,2]
[390766517,1760141439762,-2159.0,0.00029062,2]
[390766518,1760141439771,-411.0,0.00029062,2]
[390766519,1760141439781,-200.0,0.00029107,120]
[390766520,1760141439790,-168.0,0.00029112,2]
[390766521,1760141439801,-200.0,0.00029113,120]
[390766522,1760141439811,-609.16,0.00029142,3]
[390766523,1760141439820,-304.58,0.00029142,3]
[390766524,1760141439830,-7975.22,0.00029181,6]
[390766525,1760141439839,-214.71167093,0.00029203,2]
[390766526,1760141439849,-200.0,0.00029345,120]
[390766527,1760141439858,-168.0,0.00029351,2]
[390766528,1760141439867,-2446.81,0.000294,120]
[390766529,1760141439880,-250.0,0.000294,10]
[390766530,1760141439894,-895.08,0.00029422,120]
[390766531,1760141439905,-250.0,0.000295,10]
[390766532,1760141439915,-1500.0,0.000295,2]
[390766533,1760141439926,-578.83164159,0.00029521,5]
[390766534,1760141439936,-2573.23,0.00029553,30]
[390766535,1760141439946,-151.0,0.00029559,2]
[390766536,1760141439956,-500.0,0.00029559,2]
[390766537,1760141439967,-151.0,0.00029559,2]
[390766538,1760141439978,-151.0,0.00029559,2]
[390766539,1760141439987,-151.0,0.00029559,2]
[390766540,1760141439996,-151.0,0.00029559,2]
[390766541,1760141440006,-151.1439819,0.00029559,2]
[390766542,1760141440016,-151.0,0.00029559,2]
[390766543,1760141440026,-151.0,0.00029559,2]
[390766544,1760141440035,-151.0,0.00029559,2]
[390766545,1760141440045,-151.0,0.00029559,2]
[390766546,1760141440054,-151.0,0.00029559,2]
[390766547,1760141440064,-151.0,0.00029559,2]
[390766548,1760141440074,-151.0,0.00029559,2]
[390766549,1760141440084,-151.0,0.00029559,2]
[390766550,1760141440094,-151.0,0.00029559,2]
[390766551,1760141440103,-151.0,0.00029559,2]
[390766552,1760141440112,-151.0,0.00029559,2]
[390766553,1760141440122,-443.1255058,0.00029565,2]
[390766554,1760141440131,-500.0,0.00029565,2]
[390766555,1760141440142,-500.0,0.00029565,2]
[390766556,1760141440151,-500.0,0.00029565,2]
[390766557,1760141440161,-208.52312513,0.00029565,2]
[390766558,1760141440170,-221.87681725,0.00029565,2]
[390766559,1760141440180,-500.0,0.00029565,2]
[390766560,1760141440190,-500.0,0.00029565,2]
[390766561,1760141440200,-500.0,0.00029565,2]
[390766562,1760141440211,-500.0,0.00029565,2]
[390766563,1760141440220,-500.0,0.00029565,2]
[390766565,1760141440229,-500.0,0.00029565,2]
[390766567,1760141440238,-500.0,0.00029565,2]
[390766569,1760141440248,-500.0,0.00029565,2]
[390766571,1760141440258,-500.0,0.00029565,2]
[390766573,1760141440267,-500.0,0.00029565,2]
[390766575,1760141440276,-500.0,0.00029565,2]
[390766576,1760141440285,-312.48889419,0.00029565,2]
[390766577,1760141440295,-500.0,0.00029565,2]